bitfinex/quotes_SOLUSD_20251031
["timestamp","ask_amount","ask_price","bid_price","bid_amount"]
[1761905172506,13.64300004,186.99,186.96,0.2]
[1761905172806,10.04879136,186.98,186.96,0.2]
[1761905172978,3.99060445,186.97,186.96,0.2]
[1761905177895,7.59118491,186.97,186.96,0.2]
[1761905178286,8.26118491,186.97,186.96,0.2]
[1761905179202,3.99060445,186.97,186.96,0.2]
[1761905180292,4.66060445,186.97,186.96,0.2]
[1761905182912,3.99060445,186.97,186.96,0.2]
[1761905185417,7.59118491,186.97,186.96,0.2]
[1761905185599,3.99060445,186.97,186.96,0.2]
[1761905185802,7.59118491,186.97,186.96,0.2]
[1761905186004,3.99060445,186.97,186.96,0.2]
[1761905186400,7.59118491,186.97,186.96,0.2]
[1761905186720,4.66060445,186.97,186.96,0.2]
[1761905186900,8.26118491,186.97,186.96,0.2]
[1761905187214,13.60963653,186.97,186.96,0.2]
[1761905192752,13.62862379,186.97,186.96,0.2]
[1761905195704,13.63510793,186.97,186.96,0.2]
[1761905208524,12.96510793,186.97,186.96,0.2]
[1761905208723,13.63510793,186.97,186.96,0.2]
[1761905214248,53.07849509,186.97,186.83,0.2]
[1761905214540,20.592,186.84,186.77,0.2]
[1761905214747,20.592,186.8,186.77,0.2]
[1761905215043,7.61665631,186.79,186.77,0.2]
[1761905215351,4.00959171,186.78,186.77,0.2]
[1761905216837,9.36348398,186.78,186.77,0.2]
[1761905220152,4.00959171,186.78,186.77,0.2]
[1761905220544,9.36348398,186.78,186.77,0.2]
[1761905221957,4.00959171,186.78,186.77,0.2]
[1761905223543,4.00959171,186.78,186.77,0.87]
[1761905223739,4.00959171,186.78,186.77,0.2]
[1761905225145,4.00959171,186.78,186.77,62.9]
[1761905226164,4.00959171,186.78,186.77,63.57]
[1761905233464,4.00959171,186.78,186.77,0.87]
[1761905234758,9.36348398,186.78,186.77,0.2]
[1761905234950,10.08348398,186.78,186.77,0.2]
[1761905238262,10.08348398,186.78,186.77,0.00026829]
[1761905242170,9.36348398,186.78,186.77,0.00026829]
[1761905242358,6.06389227,186.78,186.77,0.00026829]
[1761905242546,10.02873345,186.78,186.77,0.00026829]
[1761905243189,10.02873345,186.78,186.76,0.2]
[1761905243475,29.91102011,186.77,186.76,0.2]
[1761905246976,24.55684118,186.77,186.76,0.88]
[1761905248351,29.91102011,186.77,186.76,0.88]
[1761905248552,3.96484118,186.77,186.76,0.88]
[1761905248857,9.31902011,186.77,186.76,0.92]
[1761905249073,12.89360419,186.77,186.76,0.92]
[1761905250479,7.53942526,186.77,186.76,0.92]
[1761905250974,28.13142526,186.77,186.76,0.92]
[1761905251175,7.53942526,186.77,186.76,0.92]
[1761905251480,3.96484118,186.77,186.76,0.92]
[1761905253283,7.53942526,186.77,186.76,0.92]
[1761905253468,3.96484118,186.77,186.76,0.92]
[1761905253667,7.53942526,186.77,186.76,0.92]
[1761905253868,3.96484118,186.77,186.76,0.92]
[1761905254066,7.53942526,186.77,186.76,0.92]
[1761905254977,3.96484118,186.77,186.76,0.92]
[1761905255183,7.53942526,186.77,186.76,0.92]
[1761905259070,7.53942526,186.77,186.74,5.5549988]
[1761905259270,12.05543192,186.76,186.74,5.5549988]
[1761905259485,7.53942526,186.75,186.74,5.5549988]
[1761905261282,7.53942526,186.75,186.74,5.9649988]
[1761905266394,7.57813219,186.75,186.74,5.9649988]
[1761905266588,7.57813219,186.75,186.74,15.75382649]
[1761905266976,3.96484118,186.75,186.74,36.63014963]
[1761905267181,3.96484118,186.75,186.74,16.57365353]
[1761905267689,3.96484118,186.75,186.74,37.16565353]
[1761905267875,3.96484118,186.75,186.74,16.57365353]
[1761905270674,0.72,186.84,186.78,30.38082769]
[1761905270894,7.62271257,186.83,186.78,30.38082769]
[1761905271189,7.62271257,186.82,186.79,0.41]
[1761905271394,7.62271257,186.81,186.79,0.41]
[1761905271581,4.01195252,186.8,186.79,10.19882769]
[1761905272596,4.01195252,186.8,186.79,15.55243334]
[1761905275989,4.01195252,186.8,186.79,15.83675648]
[1761905276388,4.01195252,186.8,186.79,36.42875648]
[1761905280890,0.68,186.87,186.8,10.07315083]
[1761905281125,3.9994841,186.86,186.8,11.01848273]
[1761905281300,3.9994841,186.85,186.81,0.41]
[1761905281614,3.9994841,186.84,186.81,0.41]
[1761905281822,3.9994841,186.83,186.81,0.41]
[1761905281999,3.9994841,186.82,186.81,15.83618332]
[1761905282433,4.28674016,186.9,186.82,10.07315083]
[1761905282592,4.28674016,186.92,186.85,0.28432314]
[1761905282794,3.60674016,186.93,186.85,10.07315083]
[1761905283101,3.60674016,186.92,186.85,9.78882769]
[1761905283321,4.28674016,186.92,186.85,9.78882769]
[1761905283514,0.68,186.91,186.85,9.78882769]
[1761905284022,6.03028684,186.91,186.85,15.14052555]
[1761905284517,0.68,186.9,186.85,15.14052555]
[1761905286399,6.03059444,186.9,186.84,9.78882769]
[1761905286712,0.68,186.9,186.84,9.78882769]
[1761905286920,0.68,186.89,186.84,9.78882769]
[1761905287899,0.68,186.89,186.84,5.35202451]
[1761905288793,0.68,186.89,186.83,15.14128714]
[1761905290351,0.68,186.89,186.83,28.52243577]
[1761905290528,0.68,186.89,186.84,0.41]
[1761905290825,0.68,186.9,186.85,9.78882769]
[1761905291005,4.27087187,186.92,186.87,9.78882769]
[1761905291322,0.68,186.92,186.87,9.78882769]
[1761905291526,0.68,186.92,186.87,0.41]
[1761905291732,4.27087187,186.92,186.87,0.41]
[1761905292104,0.68,186.91,186.87,9.78882769]
[1761905292934,0.68,186.91,186.87,10.19882769]
[1761905294296,21.272,186.93,186.89,9.78882769]
[1761905294523,4.66762959,186.92,186.89,9.78882769]
[1761905294841,3.98762959,186.91,186.89,9.78882769]
[1761905295006,3.98762959,186.9,186.89,9.78882769]
[1761905295827,3.98762959,186.9,186.89,15.13956876]
[1761905298714,3.98762959,186.9,186.89,15.54956876]
[1761905300305,3.98762959,186.9,186.89,15.13956876]
[1761905301330,3.98762959,186.9,186.84,9.78882769]
[1761905301331,4.70762959,186.9,186.84,9.78882769]
[1761905301509,4.70762959,186.89,186.84,15.14100067]
[1761905301710,3.98762959,186.88,186.84,15.14100067]
[1761905301910,0.72,186.89,186.84,15.55100067]
[1761905302110,3.98659099,186.88,186.84,15.55100067]
[1761905302315,0.72,186.89,186.84,15.55100067]
[1761905302501,3.98704224,186.88,186.84,28.93143312]
[1761905302707,0.72,186.89,186.84,28.52143312]
[1761905302922,5.34988359,186.92,186.85,1.22951179]
[1761905302923,3.98704246,186.88,186.85,1.22951179]
[1761905303113,0.72,186.92,186.85,1.22951179]
[1761905303312,3.98683534,186.91,186.86,10.19882769]
[1761905303518,3.98683534,186.9,186.86,10.19882769]
[1761905303715,3.98683534,186.89,186.85,0.28432314]
[1761905304007,3.98683534,186.88,186.85,9.78882769]
[1761905304220,3.98683534,186.87,186.85,9.78882769]
[1761905304433,3.98683534,186.86,186.85,9.78882769]
[1761905304806,3.98683534,186.86,186.85,15.14071423]
[1761905306512,3.98683534,186.86,186.84,13.38043245]
[1761905306513,4.70683534,186.86,186.84,9.78882769]
[1761905306714,4.70683534,186.85,186.83,9.78882769]
[1761905306935,4.70683534,186.85,186.79,35.0]
[1761905306936,3.98683534,186.84,186.79,35.0]
[1761905307257,3.98683534,186.83,186.79,35.0]
[1761905307541,3.98683534,186.82,186.79,35.0]
[1761905307749,3.98683534,186.81,186.79,35.0]
[1761905307920,3.98683534,186.8,186.79,44.78882769]
[1761905308129,4.70683534,186.8,186.79,44.78882769]
[1761905310235,3.98683534,186.8,186.79,44.78882769]
[1761905311430,4.70683534,186.8,186.79,44.78882769]
[1761905312327,4.70683534,186.8,186.79,35.0]
[1761905315321,3.98683534,186.8,186.79,35.0]
[1761905315547,3.98683534,186.8,186.79,50.14243334]
[1761905315930,3.98683534,186.8,186.79,50.55243334]
[1761905318130,3.98683534,186.8,186.79,50.14243334]
[1761905318535,4.70683534,186.8,186.79,35.0]
[1761905320933,30.65215439,186.8,186.79,35.0]
[1761905321255,34.25168518,186.8,186.79,33.13]
[1761905322166,20.592,186.75,186.74,0.2]
[1761905322345,25.19883534,186.75,186.74,0.2]
[1761905324168,4.60683534,186.75,186.74,0.2]
[1761905324527,30.55358768,186.75,186.74,0.2]
[1761905326741,25.19883534,186.75,186.74,0.2]
[1761905326953,4.60683534,186.75,186.74,0.2]
[1761905327959,25.19883534,186.75,186.74,0.2]
[1761905328640,4.60683534,186.75,186.74,0.2]
[1761905329044,9.96158768,186.75,186.74,0.2]
[1761905329856,19.75041537,186.75,186.74,0.2]
[1761905330058,25.33450567,186.75,186.74,0.2]
[1761905330232,27.48221433,186.75,186.74,0.2]
[1761905330436,31.69248845,186.75,186.74,0.2]
[1761905330867,29.69248846,186.75,186.74,0.2]
[1761905331069,31.69248845,186.75,186.74,0.2]
[1761905332842,29.68189512,186.75,186.74,0.2]
[1761905333063,31.68189511,186.75,186.74,0.2]
[1761905333458,1.99999999,186.74,186.69,0.2]
[1761905333667,20.592,186.71,186.69,0.2]
[1761905333844,3.976242,186.7,186.69,0.2]
[1761905334047,25.188242,186.7,186.69,0.2]
[1761905340378,3.976242,186.7,186.69,0.9]
[1761905343664,3.976242,186.7,186.69,6.25647329]
[1761905344049,3.976242,186.74,186.69,6.25647329]
[1761905344250,3.976242,186.73,186.69,0.9]
[1761905344555,3.976242,186.72,186.69,0.9]
[1761905344758,3.976242,186.71,186.69,0.9]
[1761905344946,3.976242,186.7,186.69,0.9]
[1761905353378,3.256242,186.7,186.69,16.04530098]
[1761905353581,3.256242,186.7,186.69,32.14533586]
[1761905362693,3.58715702,186.77,186.7,9.78882769]
[1761905362865,0.72,186.82,186.72,9.78882769]
[1761905363064,21.312,186.81,186.72,9.78882769]
[1761905363391,0.72,186.81,186.74,9.78882769]
[1761905363586,0.72,186.8,186.74,9.78882769]
[1761905363778,0.72,186.8,186.76,5.35446562]
[1761905364087,21.312,186.8,186.75,9.78882769]
[1761905364289,3.59754487,186.79,186.75,10.47882769]
[1761905364461,4.31754487,186.79,186.75,9.78882769]
[1761905364669,0.72,186.78,186.75,9.78882769]
[1761905365483,3.9994466,186.77,186.75,9.78882769]
[1761905365685,3.9994466,186.76,186.75,9.78882769]
[1761905365988,3.9994466,186.76,186.75,15.83358003]
[1761905366781,3.9994466,186.76,186.75,10.47882769]
[1761905366966,3.9994466,186.76,186.75,9.78882769]
[1761905367172,3.9994466,186.76,186.74,15.8338137]
[1761905367366,3.9994466,186.75,186.74,15.8338137]
[1761905367779,3.9994466,186.75,186.74,0.69]
[1761905367986,3.9994466,186.75,186.72,5.35536094]
[1761905368296,3.59899971,186.8,186.74,0.69]
[1761905368297,0.72,186.79,186.74,0.69]
[1761905368590,3.99792754,186.78,186.74,0.69]
[1761905368793,3.99792754,186.77,186.74,0.69]
[1761905368981,3.99792754,186.76,186.74,0.69]
[1761905369170,3.99792754,186.75,186.74,0.69]
[1761905369570,3.99792754,186.75,186.74,6.04503909]
[1761905370293,3.59767192,186.81,186.75,9.78882769]
[1761905370486,3.99602643,186.8,186.75,10.48882769]
[1761905370694,3.99602643,186.79,186.77,9.78882769]
[1761905370896,3.99602643,186.78,186.77,9.78882769]
[1761905371698,3.99602643,186.78,186.77,15.84300662]
[1761905372482,3.99602643,186.78,186.77,6.05417893]
[1761905374708,3.99602643,186.78,186.76,5.35443553]
[1761905374918,3.99602643,186.77,186.76,6.05443553]
[1761905377003,3.99602643,186.77,186.76,5.35443553]
[1761905378098,3.99602643,186.77,186.76,6.05443553]
[1761905383511,4.69602643,186.77,186.72,19.44464438]
[1761905383686,4.69602643,186.76,186.72,5.35561268]
[1761905384011,3.99602643,186.75,186.72,5.35561268]
[1761905384209,3.99602643,186.74,186.72,5.35561268]
[1761905384516,3.99602643,186.73,186.72,15.84444037]
[1761905384719,3.99602643,186.73,186.72,15.14444037]
[1761905384888,3.99602643,186.73,186.72,5.35561268]
[1761905385296,3.99602643,186.73,186.71,5.35583858]
[1761905385614,3.99602643,186.72,186.71,5.35583858]
[1761905389417,3.99602643,186.72,186.7,18.74595765]
[1761905389600,0.7,186.74,186.7,18.74595765]
[1761905389795,4.00049043,186.73,186.7,19.44595765]
[1761905390106,4.00049043,186.72,186.71,0.7]
[1761905391510,4.00049043,186.72,186.71,6.05589952]
[1761905392518,4.00049043,186.72,186.71,15.84472721]
[1761905394305,4.00049043,186.72,186.71,15.14472721]
[1761905395830,4.00049043,186.72,186.71,15.84472721]
[1761905399726,4.00049043,186.72,186.71,15.14472721]
[1761905400418,4.00049043,186.72,186.71,15.83472721]
[1761905401700,3.59565654,186.79,186.72,9.78882769]
[1761905401916,3.59565654,186.78,186.74,9.78882769]
[1761905402125,3.59565654,186.79,186.74,9.78882769]
[1761905402329,3.59565654,186.78,186.74,9.78882769]
[1761905402531,4.30565654,186.78,186.71,18.74564832]
[1761905402702,4.30565654,186.77,186.71,5.35589952]
[1761905402902,4.30565654,186.76,186.71,5.35589952]
[1761905403118,4.30565654,186.75,186.71,5.35589952]
[1761905403304,3.59565654,186.74,186.7,5.35618639]
[1761905403505,4.30565654,186.74,186.7,5.35618639]
[1761905403827,0.71,186.73,186.7,5.35618639]
[1761905405030,0.71,186.73,186.7,6.04618639]
[1761905405331,0.71,186.74,186.7,6.04618639]
[1761905407336,0.71,186.74,186.7,5.35618639]
[1761905407511,4.30565654,186.74,186.7,5.35618639]
[1761905407711,0.71,186.74,186.7,5.35618639]
[1761905407913,0.71,186.73,186.7,5.35618639]
[1761905408415,0.71,186.73,186.7,6.04618639]
[1761905411342,0.71,186.73,186.72,20.592]
[1761905412410,3.59565654,186.75,186.72,20.592]
[1761905412610,0.71,186.73,186.71,5.35581206]
[1761905412806,0.71,186.73,186.71,25.94781206]
[1761905413028,4.30565654,186.75,186.71,26.63781206]
[1761905413243,4.30565654,186.78,186.72,0.69]
[1761905413418,3.59565654,186.77,186.72,0.69]
[1761905413607,7.60153273,186.76,186.72,0.69]
[1761905413816,7.60153273,186.75,186.72,0.69]
[1761905414030,4.00587619,186.74,186.73,20.592]
[1761905414537,4.00587619,186.74,186.73,25.94732587]
[1761905414923,4.00587619,186.74,186.73,26.63732587]
[1761905415120,4.00587619,186.74,186.73,36.42615356]
[1761905416213,4.00587619,186.74,186.73,35.73615356]
[1761905416440,4.00587619,186.74,186.73,36.42615356]
[1761905421759,3.59565654,186.82,186.73,35.73615356]
[1761905421760,0.71,186.76,186.73,35.73615356]
[1761905422057,4.00677367,186.75,186.73,35.73615356]
[1761905422281,0.71,186.76,186.73,35.73615356]
[1761905422282,4.00677367,186.74,186.73,35.73615356]
[1761905422754,4.00677367,186.74,186.73,25.94732587]
[1761905424751,4.00677367,186.74,186.73,26.65732587]
[1761905425152,4.00677367,186.74,186.73,25.94732587]
[1761905425853,4.00677367,186.74,186.73,26.65732587]
[1761905427160,4.00677367,186.74,186.73,5.35532587]
[1761905428766,4.00677367,186.74,186.71,18.74564832]
[1761905428948,4.00677367,186.73,186.72,10.49882769]
[1761905430960,4.00677367,186.73,186.72,15.85444037]
[1761905432846,4.00677367,186.73,186.72,16.13876351]
[1761905433171,3.61302409,186.8,186.73,0.28432314]
[1761905433359,3.61302409,186.8,186.73,0.99432314]
[1761905433747,3.61302409,186.8,186.75,9.78882769]
[1761905433954,0.68,186.8,186.75,9.78882769]
[1761905434164,4.29302409,186.8,186.76,0.71]
[1761905434444,0.68,186.8,186.76,0.71]
[1761905435376,0.68,186.8,186.77,5.35417893]
[1761905438992,0.68,186.8,186.76,5.35441475]
[1761905439654,4.28940526,186.8,186.76,5.35441475]
[1761905439973,0.68,186.8,186.77,0.71]
[1761905440174,0.68,186.8,186.76,5.35441475]
[1761905440365,0.68,186.8,186.76,6.06441475]
[1761905441982,0.68,186.8,186.76,19.45057881]
[1761905443086,4.28940526,186.8,186.75,9.78882769]
[1761905443258,0.68,186.8,186.75,9.78882769]
[1761905443452,0.68,186.8,186.76,0.71]
[1761905443653,4.28940526,186.8,186.76,0.71]
[1761905443883,0.68,186.8,186.76,0.71]
[1761905444082,0.68,186.79,186.76,0.71]
[1761905444374,0.68,186.79,186.77,5.35417893]
[1761905445159,4.0077212,186.78,186.77,5.35417893]
[1761905445360,4.00731871,186.78,186.77,5.35417893]
[1761905446958,4.00731871,186.78,186.77,6.06417893]
[1761905447385,4.00731871,186.78,186.76,18.74059886]
[1761905447554,4.0065289,186.77,186.76,29.23942655]
[1761905450861,4.0065289,186.77,186.76,28.52942655]
[1761905452079,4.6865289,186.77,186.76,5.35446562]
[1761905452488,4.6865289,186.77,186.75,5.35475234]
[1761905452691,4.6871123,186.76,186.75,5.35475234]
[1761905453661,4.6871123,186.76,186.73,18.74297685]
[1761905453880,4.0071123,186.75,186.73,18.74297685]
[1761905454180,0.68,186.76,186.73,18.74297685]
[1761905454380,4.00802399,186.75,186.73,18.74297685]
[1761905454584,0.68,186.76,186.73,18.74297685]
[1761905454769,4.00802399,186.75,186.73,13.38765098]
[1761905454970,0.68,186.76,186.73,14.09765098]
[1761905455269,4.00802421,186.75,186.73,14.09765098]
[1761905455577,0.68,186.76,186.73,14.09765098]
[1761905455786,4.00853638,186.75,186.73,14.09765098]
[1761905455970,0.68,186.76,186.73,14.09765098]
[1761905456166,4.00853638,186.75,186.73,19.45297685]
[1761905456469,0.68,186.76,186.73,19.45297685]
[1761905456771,4.0091225,186.75,186.73,19.45297685]
[1761905456969,0.68,186.76,186.73,19.45297685]
[1761905457164,4.0091225,186.75,186.73,19.45297685]
[1761905457385,4.0091225,186.74,186.73,28.53180454]
[1761905457769,4.0091225,186.74,186.73,29.24180454]
[1761905461465,0.67,186.81,186.74,9.78882769]
[1761905461677,4.2765905,186.81,186.74,10.46882769]
[1761905461883,0.67,186.81,186.76,9.78882769]
[1761905462076,0.67,186.8,186.76,9.78882769]
[1761905462278,0.67,186.8,186.76,10.46882769]
[1761905462665,0.67,186.8,186.77,18.73962627]
[1761905465671,0.67,186.8,186.77,19.41962627]
[1761905467187,0.67,186.8,186.77,18.73962627]
[1761905467402,0.67,186.83,186.78,10.46882769]
[1761905467588,3.6065905,186.86,186.78,9.78882769]
[1761905467589,21.262,186.86,186.78,9.78882769]
[1761905467899,21.262,186.86,186.77,18.73962627]
[1761905467900,20.592,186.84,186.77,5.35417893]
[1761905468076,3.61094589,186.83,186.77,5.35417893]
[1761905468272,3.61094589,186.82,186.77,5.35417893]
[1761905468475,3.61094589,186.81,186.77,5.35417893]
[1761905468681,0.67,186.8,186.77,5.35417893]
[1761905468880,0.67,186.8,186.75,28.53046088]
[1761905470511,4.28094589,186.8,186.75,28.53046088]
[1761905470672,0.67,186.8,186.75,28.53046088]
[1761905470868,20.592,186.84,186.75,28.53046088]
[1761905470869,0.67,186.79,186.75,5.35475234]
[1761905471069,0.67,186.79,186.73,5.3551325]
[1761905471070,3.61094589,186.78,186.73,5.3551325]
[1761905471393,3.61094589,186.77,186.73,5.3551325]
[1761905471584,3.61094589,186.76,186.73,5.3551325]
[1761905471772,3.61094589,186.77,186.73,5.3551325]
[1761905471974,3.61094589,186.76,186.73,5.3551325]
[1761905472175,3.61094589,186.79,186.72,18.74404137]
[1761905472475,3.61094589,186.78,186.72,18.74404137]
[1761905472682,3.61094589,186.77,186.72,18.74404137]
[1761905472884,3.61094589,186.76,186.72,18.74404137]
[1761905473087,4.28094589,186.76,186.72,18.74404137]
[1761905473291,0.67,186.75,186.72,18.74404137]
[1761905473591,4.01446716,186.74,186.72,13.38842869]
[1761905473902,4.01446716,186.73,186.72,23.85725638]
[1761905474795,4.01446716,186.73,186.72,29.21286906]
[1761905475597,4.01446716,186.73,186.72,28.53286906]
[1761905476408,4.01446716,186.73,186.72,29.21286906]
[1761905477804,4.01446716,186.73,186.72,28.53286906]
[1761905478191,4.01446716,186.73,186.72,29.25286906]
[1761905478706,4.01446716,186.73,186.72,28.53286906]
[1761905479096,4.01446716,186.73,186.72,29.25286906]
[1761905480007,4.01446716,186.73,186.72,28.53286906]
[1761905480203,4.01446716,186.73,186.72,15.14444037]
[1761905480394,4.69446716,186.73,186.7,5.35618639]
[1761905480715,4.69446716,186.72,186.7,5.35618639]
[1761905480907,4.01446716,186.71,186.69,5.55640144]
[1761905481110,4.29270433,186.75,186.7,10.50882769]
[1761905481413,4.01365607,186.74,186.7,10.50882769]
[1761905481585,4.01365607,186.73,186.7,10.50882769]
[1761905481784,0.68,186.74,186.7,10.50882769]
[1761905481785,4.01365607,186.72,186.7,10.50882769]
[1761905482011,4.01365607,186.71,186.7,15.86501408]
[1761905485114,4.01365607,186.71,186.7,5.35618639]
[1761905485321,4.69365607,186.71,186.7,5.35618639]
[1761905485615,4.69365607,186.71,186.69,0.2]
[1761905485818,4.69365607,186.7,186.69,0.2]
[1761905509415,4.01365607,186.7,186.69,0.2]
[1761905509713,4.01365607,186.7,186.69,6.27647329]
[1761905509913,4.01365607,186.7,186.69,0.2]
[1761905510139,4.68365607,186.7,186.69,0.2]
[1761905510437,4.01365607,186.7,186.69,0.2]
[1761905514447,4.01365607,186.7,186.69,0.92]
[1761905515434,4.01365607,186.7,186.69,6.27647329]
[1761905519532,4.01365607,186.7,186.69,5.55647329]
[1761905519939,4.69365607,186.7,186.69,0.2]
[1761905522548,8.29611415,186.7,186.69,0.2]
[1761905522750,4.69365607,186.7,186.69,0.2]
[1761905523078,13.6533368,186.7,186.69,0.2]
[1761905523558,19.00952319,186.7,186.69,0.2]
[1761905523724,33.3142313,186.7,186.68,0.2]
[1761905523923,13.65258744,186.69,186.68,0.2]
[1761905524347,18.16846786,186.69,186.68,0.2]
[1761905524530,20.592,186.66,186.64,0.2]
[1761905524733,7.61611415,186.65,186.64,0.2]
[1761905524931,8.29611415,186.65,186.64,0.2]
[1761905525153,8.29611415,186.65,186.64,0.01794956]
[1761905526556,18.08494184,186.65,186.64,0.01794956]
[1761905526724,12.80754624,186.65,186.64,0.01794956]
[1761905526932,18.16516745,186.65,186.64,0.01794956]
[1761905527938,8.29611415,186.65,186.64,0.01794956]
[1761905528341,13.65373536,186.65,186.64,0.01794956]
[1761905528749,18.16516745,186.65,186.64,0.01794956]
[1761905529254,27.95399514,186.65,186.64,0.01794956]
[1761905530246,39.32866375,186.65,186.64,0.01794956]
[1761905531952,41.47741076,186.65,186.64,0.01794956]
[1761905535460,45.98884285,186.65,186.63,0.2]
[1761905535644,8.29611415,186.64,186.63,0.2]
[1761905536052,15.80311577,186.64,186.63,0.2]
[1761905538155,25.59194346,186.64,186.63,0.2]
[1761905538467,30.10337555,186.64,186.63,0.2]
[1761905539239,9.78882769,186.63,186.61,0.2]
[1761905539445,4.72365607,186.62,186.61,0.2]
[1761905539863,6.87298037,186.62,186.61,0.2]
[1761905540765,12.23146284,186.62,186.61,0.2]
[1761905540969,15.83392092,186.62,186.61,0.2]
[1761905543648,40.64024252,186.62,186.61,0.2]
[1761905543845,20.04824252,186.62,186.61,0.2]
[1761905544064,16.44578444,186.62,186.61,0.2]
[1761905544783,37.03778444,186.62,186.61,0.2]
[1761905544957,20.03135624,186.62,186.61,0.2]
[1761905545279,16.44578444,186.62,186.61,0.2]
[1761905545985,10.37730197,186.62,186.61,0.2]
[1761905546473,11.08730197,186.62,186.61,0.2]
[1761905548054,37.03778444,186.62,186.61,0.2]
[1761905548254,40.62335624,186.62,186.61,0.2]
[1761905548690,31.05055217,186.62,186.61,0.2]
[1761905548855,30.34055217,186.62,186.61,0.2]
[1761905549673,25.58586233,186.62,186.61,0.2]
[1761905553114,25.58666182,186.62,186.61,0.2]
[1761905560292,25.58666182,186.62,186.61,0.01769046]
[1761905562380,30.06962593,186.62,186.61,0.01769046]
[1761905563800,29.37962593,186.62,186.61,0.01769046]
[1761905563975,30.06962593,186.62,186.61,0.01769046]
[1761905564288,25.58666182,186.62,186.6,0.2]
[1761905564490,12.79342394,186.61,186.6,0.2]
[1761905564891,14.25251729,186.61,186.6,0.2]
[1761905565492,15.10789033,186.61,186.6,0.2]
[1761905566189,9.74912071,186.61,186.6,0.2]
[1761905566377,14.25251729,186.61,186.6,0.86]
[1761905566568,6.05002736,186.61,186.6,6.2190568]
[1761905566773,2.46365607,186.61,186.6,6.2190568]
[1761905567493,6.05002736,186.61,186.6,6.2190568]
[1761905567699,2.46365607,186.61,186.6,6.2190568]
[1761905573999,2.46365607,186.61,186.6,68.9190568]
[1761905579174,7.86274258,186.68,186.6,82.31669881]
[1761905579377,4.00500956,186.67,186.6,81.65669881]
[1761905579704,4.00500956,186.66,186.6,81.65669881]
[1761905579885,4.00500956,186.65,186.6,81.65669881]
[1761905580094,4.00500956,186.64,186.6,81.65669881]
[1761905580402,4.00500956,186.63,186.6,81.65669881]
[1761905580591,4.00500956,186.62,186.6,81.65669881]
[1761905580893,0.66,186.67,186.6,81.65669881]
[1761905581206,4.00477327,186.66,186.6,81.65669881]
[1761905581402,4.00477327,186.65,186.61,9.78882769]
[1761905581584,4.00477327,186.64,186.61,9.78882769]
[1761905581906,4.00477327,186.63,186.61,13.79383725]
[1761905582199,3.58637129,186.69,186.61,13.79383725]
[1761905582403,4.0028684,186.68,186.61,76.49383725]
[1761905582597,4.66500956,186.71,186.61,76.49383725]
[1761905582598,4.0028684,186.67,186.61,76.49383725]
[1761905582775,4.0028684,186.66,186.61,76.49383725]
[1761905582976,4.0028684,186.65,186.61,72.48882769]
[1761905583193,4.66500956,186.71,186.62,4.66500956]
[1761905583484,4.0014306,186.7,186.63,18.75368374]
[1761905583693,4.0014306,186.69,186.63,18.75368374]
[1761905583905,4.0014306,186.68,186.63,18.75368374]
[1761905584094,4.0014306,186.67,186.63,18.75368374]
[1761905584400,4.0014306,186.66,186.63,68.05819535]
[1761905584591,4.0014306,186.65,186.63,68.05819535]
[1761905584793,4.0014306,186.64,186.63,68.05819535]
[1761905585098,0.66,186.69,186.63,68.05819535]
[1761905585285,4.00063108,186.68,186.63,68.05819535]
[1761905585484,4.00063108,186.67,186.63,68.05819535]
[1761905585685,4.00063108,186.66,186.63,68.05819535]
[1761905585904,4.00063108,186.65,186.63,68.05819535]
[1761905586108,0.66,186.68,186.63,68.05819535]
[1761905586408,3.99981416,186.67,186.63,68.05819535]
[1761905586609,3.99981416,186.66,186.63,68.05819535]
[1761905586789,3.99981416,186.65,186.63,68.05819535]
[1761905586990,0.66,186.69,186.63,68.05819535]
[1761905587211,3.99911878,186.68,186.63,81.45368374]
[1761905587505,3.99911878,186.67,186.63,81.45368374]
[1761905587708,0.66,186.69,186.63,81.45368374]
[1761905587709,3.99911878,186.66,186.63,81.45368374]
[1761905587912,3.99911878,186.65,186.63,81.45368374]
[1761905588084,0.66,186.69,186.63,81.45368374]
[1761905588283,3.99853359,186.68,186.63,81.45368374]
[1761905588612,3.99853359,186.67,186.63,81.45368374]
[1761905588798,3.99853359,186.66,186.63,81.45368374]